fUST/lending_fUST_20240703
["ID","MTS","AMOUNT","RATE_DAILY","PERIOD"]
[330919837,1719943362165,395.59,0.00010959,2]
[330919838,1719943366548,244.97894054,0.00013283,2]
[330919839,1719943366892,660.94710043,9.999e-05,2]
[330919840,1719943367817,155.96559643,0.00013283,2]
[330919841,1719943372685,362.62,0.00010959,2]
[330919842,1719943381991,402.7993587,0.00013283,2]
[330919843,1719943383315,322.01145644,0.00013283,2]
[330919844,1719943383448,329.66,0.00010959,2]
[330919845,1719943384846,164.53895357,0.00013283,2]
[330919846,1719943385031,842.54666328,0.00013283,2]
[330919847,1719943385172,154.91476285,0.00013283,2]
[330919848,1719943394422,412.08,0.00010959,2]
[330919849,1719943395206,309.6439095,0.00013283,2]
[330919850,1719943397187,181.81611044,0.00013283,2]
[330919851,1719943397400,184.05504628,0.00013283,2]
[330919852,1719943398938,209.56639127,0.00013283,2]
[330919853,1719943398978,208.98551847,0.00013283,2]
[330919854,1719943399233,724.44962889,0.00013283,2]
[330919855,1719943403262,172.6220645,0.00013283,2]
[330919856,1719943403528,155.67984992,0.00013283,2]
[330919857,1719943403659,519.98573171,0.00013283,2]
[330919858,1719943404844,343.4,0.00010959,2]
[330919859,1719943406539,2000.0,0.00013983,2]
[330919860,1719943407602,2128.88510458,0.00013283,2]
[330919861,1719943408746,164.83119203,0.00013283,2]
[330919862,1719943410067,155.05100126,0.00013283,2]
[330919863,1719943410707,517.32153292,0.00013283,2]
[330919864,1719943414934,154.996983,0.00013283,2]
[330919865,1719943414990,309.6439095,0.00013283,2]
[330919866,1719943415359,286.16,0.00010959,2]
[330919867,1719943415447,155.38523359,0.00013283,2]
[330919868,1719943415513,184.43879915,0.00013283,2]
[330919869,1719943417870,194.98259822,0.00013283,2]
[330919870,1719943417899,308.04407235,0.00013283,2]
[330919871,1719943418320,214.18723696,0.00013283,2]
[330919872,1719943418350,155.3707062,0.00013283,2]
[330919873,1719943425884,238.47,0.00010959,2]
[330919874,1719943436419,238.47,0.00010959,2]
[330919876,1719943447041,158.98,0.00010959,2]
[330919877,1719943457807,794.92,0.00010959,2]
[330919878,1719943484841,285.68341675,0.00013283,2]
[330919879,1719943492688,2000.0,0.00013983,2]
[330919880,1719943560092,818.39219299,9.999e-05,2]
[330919881,1719943564417,208.78179078,9.999e-05,2]
[330919886,1719943593913,402.01746783,9.999e-05,2]
[330919887,1719943601160,-300.0,0.00014077,2]
[330919888,1719943601183,-300.0,0.00014077,2]
[330919889,1719943601205,-500.0,0.00014078,2]
[330919890,1719943601225,-500.0,0.00014078,2]
[330919891,1719943601247,-500.0,0.00014078,2]
[330919892,1719943601268,-500.0,0.00014078,2]
[330919893,1719943601289,-194.30191248,0.00014078,2]
[330919894,1719943601309,-500.0,0.00014078,2]
[330919895,1719943601330,-500.0,0.00014078,2]
[330919896,1719943601352,-500.0,0.00014078,2]
[330919897,1719943601380,-1096.54,0.00014078,2]
[330919898,1719943601400,-500.0,0.00014078,2]
[330919899,1719943601420,-500.0,0.00014078,2]
[330919900,1719943601453,-500.0,0.00014078,2]
[330919901,1719943601475,-500.0,0.00014078,2]
[330919902,1719943601497,-500.0,0.00014078,2]
[330919903,1719943601518,-790.27964552,0.00014078,2]
[330919904,1719943605758,817.64664361,0.0001212,2]
[330919905,1719943606514,2000.0,0.00013981,2]
[330919907,1719943637419,264.68635392,0.0001212,2]
[330919909,1719943643441,412.3,0.00010959,2]
[330919910,1719943685598,309.7057795,9.999e-05,2]
[330919911,1719943692596,2000.0,0.00013981,2]
[330919914,1719943717241,-300.0,0.00014077,2]
[330919915,1719943717270,-218.69712036,0.00014078,2]
[330919916,1719943717300,-185.72347735,0.00014078,2]
[330919917,1719943717341,-314.27652265,0.00014078,2]
[330919918,1719943717368,-202.18784721,0.00014078,2]
[330919920,1719943742614,-500.0,0.00014077,2]
[330919921,1719943742648,-228.83829706,0.00014078,2]
[330919922,1719943742692,-489.84385573,0.00014078,2]
[330919923,1719943742735,-140.78873844,0.00014078,2]
[330919926,1719943767393,-756.02771488,0.00014077,2]
[330919929,1719943790428,15554.3406308,0.0001308,2]
[330919930,1719943792379,-102.31228512,0.00014077,2]
[330919931,1719943792412,-668.83598406,0.00014077,2]
[330919932,1719943792446,-561.49113154,0.00014077,2]
[330919933,1719943792486,195.57704168,9.999e-05,2]
[330919934,1719943794902,248.36537611,9.999e-05,2]
[330919935,1719943800724,154.9879291,0.0001212,2]
[330919936,1719943806944,2000.0,0.0001398,2]
[330920054,1719943837917,-433.23403452,0.00014077,2]
[330920056,1719943837935,-333.95878176,0.00014077,2]
[330920058,1719943837947,-277.48006812,0.00014077,2]
[330920060,1719943837956,-33.03427182,0.00014077,2]
[330920125,1719943840471,-466.96572818,0.00014077,2]
[330920127,1719943840480,-500.0,0.00014077,2]
[330920128,1719943840489,-17095.08,0.00014077,2]
[330920130,1719943840499,-700.48,0.00014077,2]
[330920132,1719943840508,-359.21126156,0.00014078,2]
[330920134,1719943840518,-500.0,0.00014078,2]
[330920136,1719943840527,-500.0,0.00014078,2]
[330920138,1719943840536,-1151.45,0.00014078,2]
[330920140,1719943840546,-500.0,0.00014078,2]
[330920142,1719943840556,-500.0,0.00014078,2]
[330920143,1719943840565,-500.0,0.00014078,2]
[330920145,1719943840577,-500.0,0.00014078,2]
[330920147,1719943840586,-500.0,0.00014078,2]
[330920149,1719943840595,-500.0,0.00014078,2]
[330920151,1719943840605,-500.0,0.00014078,2]
[330920153,1719943840614,-625.33754958,0.00014078,2]
[330920155,1719943840624,-500.0,0.00014078,2]
[330920157,1719943840633,-500.0,0.00014078,2]
[330920159,1719943840643,-500.0,0.00014078,2]
[330920161,1719943840652,-1118.81,0.00014078,2]
[330920163,1719943840661,-527.89155646,0.00014078,2]
[330920165,1719943840670,-500.0,0.00014078,2]
[330920167,1719943840680,-1327.14,0.00014078,2]
[330920169,1719943840689,-500.0,0.00014078,2]
[330920171,1719943840699,-500.0,0.00014078,2]
[330920172,1719943840708,-500.0,0.00014078,2]
[330920174,1719943840718,-500.0,0.00014078,2]
[330920176,1719943840727,-500.0,0.00014078,2]
[330920178,1719943840737,-500.0,0.00014078,2]
[330920180,1719943840746,-500.0,0.00014078,2]
[330920182,1719943840756,-500.0,0.00014078,2]
[330920184,1719943840765,-500.0,0.00014078,2]
[330920186,1719943840775,-239.08603204,0.00014078,2]
[330920188,1719943840785,-500.0,0.00014078,2]
[330920190,1719943840796,-500.0,0.00014078,2]
[330920192,1719943840805,-500.0,0.00014078,2]
[330920194,1719943840814,-634.29469042,0.00014078,2]
[330920232,1719943841382,-193.24530958,0.00014078,2]
[330920233,1719943841391,-500.0,0.00014078,2]
[330920234,1719943841400,-278.75469042,0.00014078,2]
[330920235,1719943841412,-221.24530958,0.00014078,2]
[330920236,1719943841422,-500.0,0.00014078,2]
[330920237,1719943841432,-500.0,0.00014078,2]
[330920238,1719943841441,-500.0,0.00014078,2]
[330920239,1719943841450,-500.0,0.00014078,2]
[330920240,1719943841459,-1255.11,0.00014078,2]
[330920241,1719943841469,-500.0,0.00014078,2]
[330920242,1719943841478,-500.0,0.00014078,2]
[330920243,1719943841488,-500.0,0.00014078,2]
[330920244,1719943841498,-500.0,0.00014078,2]
[330920245,1719943841507,-2141.0,0.00014078,2]
[330920246,1719943841516,-750.77,0.00014078,2]
[330920247,1719943841526,-513.03,0.00014078,2]
[330920248,1719943841535,-500.0,0.00014078,2]
[330920249,1719943841545,-3421.39,0.00014078,2]
[330920250,1719943841555,-500.0,0.00014078,2]
[330920251,1719943841564,-500.0,0.00014078,2]
[330920252,1719943841573,-500.0,0.00014078,2]
[330920253,1719943841584,-500.0,0.00014078,2]
[330920254,1719943841594,-500.0,0.00014078,2]
[330920255,1719943841604,-201.85617734,0.00014078,2]
[330920256,1719943841616,-298.14382266,0.00014078,2]
[330920257,1719943841626,-550.02769491,0.00014078,2]
[330920258,1719943841635,-151.82185293,0.00014078,2]
[330920259,1719943841646,-249.993024,0.00014078,2]
[330920260,1719943841658,-98.18512307,0.00014078,2]
[330920261,1719943841668,-500.0,0.00014078,2]
[330920262,1719943841677,-500.0,0.00014078,2]
[330920263,1719943841686,-500.0,0.00014078,2]
[330920264,1719943841695,-500.0,0.00014078,2]
[330920265,1719943841705,-500.0,0.00014078,2]
[330920266,1719943841714,-500.0,0.00014078,2]
[330920267,1719943841723,-500.0,0.00014078,2]
[330920268,1719943841732,-500.0,0.00014078,2]
[330920269,1719943841742,-500.0,0.00014078,2]
[330920270,1719943841751,-500.0,0.00014078,2]
[330920271,1719943841761,-500.0,0.00014078,2]
[330920272,1719943841770,-476.00641102,0.00014078,2]
[330920309,1719943843317,-41.26449226,0.00014078,2]
[330920310,1719943843327,-7672.71,0.00014078,2]
[330920311,1719943843336,-500.0,0.00014078,2]
[330920312,1719943843346,-500.0,0.00014078,2]
[330920313,1719943843355,-500.0,0.00014078,2]
[330920314,1719943843365,-500.0,0.00014078,2]
[330920315,1719943843374,-500.0,0.00014078,2]
[330920316,1719943843383,-500.0,0.00014078,2]
[330920317,1719943843392,-1224.1,0.00014078,2]
[330920319,1719943843402,-500.0,0.00014078,2]
[330920321,1719943843411,-500.0,0.00014078,2]
[330920323,1719943843420,-295.31999698,0.00014078,2]
[330920366,1719943846449,-2051.79,0.00014077,2]
[330920368,1719943846458,-204.68000302,0.00014078,2]
[330920369,1719943846475,-500.0,0.00014078,2]
[330920370,1719943846487,-500.0,0.00014078,2]
[330920371,1719943846497,-475.0,0.00014078,2]
[330920372,1719943846507,-666.88,0.00014078,2]
[330920373,1719943846517,-510.23074069,0.00014078,2]
[330920374,1719943846527,-500.0,0.00014078,2]
[330920375,1719943846536,-780.12,0.00014078,2]
[330920376,1719943846545,-500.0,0.00014078,2]
[330920377,1719943846556,-500.0,0.00014078,2]
[330920378,1719943846565,-500.0,0.00014078,2]
[330920379,1719943846574,-500.0,0.00014078,2]
[330920381,1719943846584,-724.72053117,0.00014078,2]
[330920383,1719943846598,-799.96946883,0.00014078,2]
[330920385,1719943846608,-500.0,0.00014078,2]
[330920386,1719943846618,-500.0,0.00014078,2]
[330920388,1719943846627,-500.0,0.00014078,2]
[330920390,1719943846636,-500.0,0.00014078,2]
[330920391,1719943846646,-500.0,0.00014078,2]
[330920392,1719943846656,-500.0,0.00014078,2]
[330920393,1719943846665,-6961.67087872,0.00014078,2]
[330920394,1719943846678,-424.07912128,0.00014078,2]
[330920395,1719943846688,-500.0,0.00014078,2]
[330920396,1719943846698,-500.0,0.00014078,2]
[330920397,1719943846708,-500.0,0.00014078,2]
[330920398,1719943846718,-500.0,0.00014078,2]
[330920399,1719943846727,-500.0,0.00014078,2]
[330920400,1719943846737,-500.0,0.00014078,2]
[330920401,1719943846747,-588.94,0.00014078,2]
[330920402,1719943846759,-500.0,0.00014078,2]
[330920403,1719943846769,-500.0,0.00014078,2]
[330920404,1719943846779,-500.0,0.00014078,2]
[330920405,1719943846789,-2265.98,0.00014078,2]
[330920406,1719943846799,-500.0,0.00014078,2]
[330920407,1719943846810,-708.66,0.00014078,2]
[330920408,1719943846820,-500.0,0.00014078,2]
[330920409,1719943846831,-500.0,0.00014078,2]
[330920410,1719943846841,-500.0,0.00014078,2]
[330920411,1719943846851,-500.0,0.00014078,2]
[330920412,1719943846860,-500.0,0.00014078,2]
[330920413,1719943846870,-2917.8,0.00014078,2]
[330920414,1719943846879,-500.0,0.00014078,2]
[330920415,1719943846889,-506.75248737,0.00014078,2]
[330920416,1719943846899,-500.0,0.00014078,2]
[330920417,1719943846908,-1533.64,0.00014078,2]
[330920418,1719943846918,-212.711299,0.00014078,2]
[330920419,1719943846930,-212.711299,0.00014078,2]
[330920420,1719943846942,-500.0,0.00014078,2]
[330920421,1719943846951,-199.635125,0.00014078,2]
[330920422,1719943846961,-500.0,0.00014078,2]
[330920423,1719943846970,-199.635125,0.00014078,2]
[330920424,1719943846981,-500.0,0.00014078,2]
[330920425,1719943846991,-500.0,0.00014078,2]
[330920426,1719943847001,-500.0,0.00014078,2]
[330920427,1719943847011,-892.02,0.00014078,2]
[330920428,1719943847021,-924.54,0.00014078,2]
[330920429,1719943847030,-151.0,0.00014078,2]
[330920430,1719943847040,-500.0,0.00014078,2]
[330920431,1719943847052,-151.0,0.00014078,2]
[330920432,1719943847061,-448.22,0.00014078,2]
[330920433,1719943847070,-3845.42,0.00014078,2]
[330920434,1719943847079,-500.0,0.00014078,2]
[330920435,1719943847089,-226.31530429,0.00014078,2]
[330920436,1719943847098,-500.0,0.00014078,2]
[330920437,1719943847107,-500.0,0.00014078,2]
[330920438,1719943847117,-500.0,0.00014078,2]
[330920439,1719943847128,-478.73257654,0.00014078,2]
[330920440,1719943847137,-500.0,0.00014078,2]
[330920441,1719943847149,-4487.49,0.00014078,2]
[330920442,1719943847160,-500.0,0.00014078,2]
[330920443,1719943847171,-500.0,0.00014078,2]
[330920444,1719943847181,-500.0,0.00014078,2]
[330920445,1719943847191,-543.03204284,0.00014078,2]
[330920446,1719943847201,-151.0,0.00014078,2]
[330920447,1719943847213,-500.0,0.00014078,2]
[330920448,1719943847222,-500.0,0.00014078,2]
[330920449,1719943847393,-500.0,0.00014078,2]
[330920450,1719943847402,-506.23553151,0.00014078,2]
[330920451,1719943847411,-500.0,0.00014078,2]
[330920452,1719943847420,-500.0,0.00014078,2]
[330920453,1719943847430,-500.0,0.00014079,2]
[330920454,1719943847439,-500.0,0.00014079,2]
[330920455,1719943847448,-500.0,0.00014079,2]
[330920456,1719943847458,-500.0,0.00014079,2]
[330920457,1719943847468,-500.0,0.00014079,2]
[330920458,1719943847477,-500.0,0.00014079,2]
[330920459,1719943847487,-188.09167626,0.00014079,2]
[330920460,1719943847495,-500.0,0.00014079,2]
[330920461,1719943847504,-500.0,0.00014079,2]
[330920462,1719943847514,-4224.95,0.00014079,2]
[330920463,1719943847523,-209.426618,0.00014079,2]
[330920464,1719943847532,-151.0,0.00014079,2]
[330920465,1719943847541,-591.62,0.00014079,2]
[330920466,1719943847550,-151.0,0.00014079,2]
[330920467,1719943847560,-151.0,0.00014079,2]
[330920468,1719943847569,-151.0,0.00014079,2]
[330920469,1719943847578,-151.0,0.00014079,2]
[330920470,1719943847587,-151.0,0.00014079,2]
[330920471,1719943847597,-151.0,0.00014079,2]
[330920472,1719943847606,-505.783091,0.00014079,2]
[330920473,1719943847615,-151.0,0.00014079,2]
[330920474,1719943847624,-505.783091,0.00014079,2]
[330920475,1719943847636,-151.0,0.00014079,2]
[330920476,1719943847646,-151.0,0.00014079,2]
[330920477,1719943847655,-151.0,0.00014079,2]
[330920478,1719943847664,-151.0,0.00014079,2]
[330920479,1719943847674,-177.007276,0.00014079,2]
[330920480,1719943847684,-177.007276,0.00014079,2]
[330920481,1719943847695,-500.0,0.00014079,2]
[330920482,1719943847704,-151.0,0.00014079,2]
[330920483,1719943847714,-7633.39952366,0.0001408,2]
[330920484,1719943847724,-500.0,0.0001408,2]
[330920485,1719943847733,-500.0,0.0001408,2]
[330920486,1719943847743,-500.0,0.0001408,2]
[330920487,1719943847752,-500.0,0.0001408,2]
[330920488,1719943847761,-500.0,0.0001408,2]
[330920489,1719943847771,-395.96833095,0.0001408,2]
[330920490,1719943847781,-500.0,0.0001408,2]
[330920491,1719943847790,-500.0,0.0001408,2]
[330920492,1719943847801,-500.0,0.0001408,2]
[330920493,1719943847810,-500.0,0.0001408,2]
[330920494,1719943847819,-500.0,0.0001408,2]
[330920495,1719943847829,-500.0,0.0001408,2]
[330920496,1719943847839,-500.0,0.0001408,2]
[330920497,1719943847848,-500.0,0.0001408,2]
[330920498,1719943847857,-500.0,0.0001408,2]
[330920499,1719943847866,-352.06217992,0.0001408,2]
[330920500,1719943847875,-500.0,0.0001408,2]
[330920501,1719943847885,-500.0,0.0001408,2]
[330920502,1719943847895,-500.0,0.0001408,2]
[330920503,1719943847905,-504.24601484,0.0001408,2]
[330920504,1719943847914,-500.0,0.0001408,2]
[330920505,1719943847923,-500.0,0.0001408,2]
[330920506,1719943847938,-500.0,0.0001408,2]
[330920507,1719943847947,-500.0,0.0001408,2]
[330920508,1719943847957,-502.49076072,0.0001408,2]
[330920509,1719943847966,-500.0,0.0001408,2]
[330920510,1719943847980,-883.42,0.0001408,2]
[330920511,1719943847990,-500.0,0.0001408,2]
[330920512,1719943848002,-500.0,0.0001408,2]
[330920513,1719943848012,-500.0,0.0001408,2]
[330920514,1719943848023,-155.0,0.0001408,2]
[330920515,1719943848032,-565.48491466,0.0001408,2]
[330920516,1719943848041,-500.0,0.0001408,2]
[330920517,1719943848051,-500.0,0.0001408,2]
[330920518,1719943848061,-500.0,0.0001408,2]
[330920519,1719943848070,-500.0,0.0001408,2]
[330920520,1719943848081,-500.0,0.0001408,2]
[330920521,1719943848091,-500.0,0.0001408,2]
[330920522,1719943848101,-500.0,0.0001408,2]
[330920523,1719943848110,-500.0,0.0001408,2]
[330920524,1719943848120,-500.0,0.0001408,2]
[330920525,1719943848129,-500.0,0.0001408,2]
[330920526,1719943848139,-559.10364024,0.0001408,2]
[330920527,1719943848148,-500.0,0.0001408,2]
[330920528,1719943848157,-500.0,0.0001408,2]
[330920529,1719943848166,-544.46695782,0.0001408,2]
[330920530,1719943848176,-500.0,0.0001408,2]
[330920531,1719943848185,-500.0,0.0001408,2]
[330920532,1719943848194,-500.0,0.0001408,2]
[330920533,1719943848206,-500.0,0.0001408,2]
[330920534,1719943848216,-500.0,0.0001408,2]
[330920535,1719943848226,-500.0,0.0001408,2]
[330920536,1719943848235,-500.0,0.0001408,2]
[330920537,1719943848245,-500.0,0.0001408,2]
[330920538,1719943848254,-151.0,0.0001408,2]
[330920539,1719943848266,-576.88372015,0.0001408,2]
[330920540,1719943848277,-500.0,0.0001408,2]
[330920541,1719943848287,-500.0,0.0001408,2]
[330920542,1719943848297,-500.0,0.0001408,2]
[330920543,1719943848307,-500.0,0.0001408,2]
[330920544,1719943848316,-567.80483962,0.0001408,2]
[330920545,1719943848325,-500.0,0.0001408,2]
[330920546,1719943848334,-500.0,0.0001408,2]
[330920547,1719943848344,-151.0,0.0001408,2]
[330920548,1719943848353,-151.0,0.0001408,2]
[330920549,1719943848363,-500.0,0.0001408,2]
[330920550,1719943848372,-151.0,0.0001408,2]
[330920551,1719943848382,-508.97045269,0.0001408,2]
[330920552,1719943848392,-500.0,0.0001408,2]
[330920553,1719943848401,-500.0,0.0001408,2]
[330920554,1719943848412,-151.0,0.0001408,2]
[330920555,1719943848421,-151.0,0.0001408,2]
[330920556,1719943848431,-151.0,0.0001408,2]
[330920557,1719943848440,-151.0,0.0001408,2]
[330920558,1719943848450,-151.0,0.0001408,2]
[330920559,1719943848459,-271.12,0.0001408,2]
[330920560,1719943848468,-500.0,0.0001408,2]
[330920561,1719943848478,-500.0,0.0001408,2]
[330920562,1719943848487,-500.0,0.0001408,2]
[330920563,1719943848497,-500.0,0.0001408,2]
[330920564,1719943848506,-500.0,0.0001408,2]
[330920565,1719943848515,-500.0,0.0001408,2]
[330920566,1719943848524,-500.0,0.0001408,2]
[330920567,1719943848534,-151.0,0.0001408,2]
[330920568,1719943848543,-151.0,0.0001408,2]
[330920569,1719943848553,-606.33426934,0.0001408,2]
[330920570,1719943848562,-500.0,0.0001408,2]
[330920571,1719943848571,-500.0,0.0001408,2]
[330920572,1719943848580,-500.0,0.0001408,2]
[330920573,1719943848588,-189.7635664,0.0001408,2]
[330920574,1719943848599,-500.0,0.0001408,2]
[330920575,1719943848609,-500.0,0.0001408,2]
[330920576,1719943848618,-558.94370185,0.0001408,2]
[330920577,1719943848628,-500.0,0.0001408,2]
[330920578,1719943848638,-500.0,0.0001408,2]
[330920579,1719943848648,-500.0,0.0001408,2]
[330920580,1719943848658,-500.0,0.0001408,2]
[330920581,1719943848667,-500.0,0.0001408,2]
[330920582,1719943848677,-151.0,0.0001408,2]
[330920583,1719943848686,-151.0,0.0001408,2]
[330920584,1719943848698,-151.0,0.0001408,2]
[330920585,1719943848708,-500.0,0.0001408,2]
[330920586,1719943848717,-500.0,0.0001408,2]
[330920587,1719943848729,-716.21,0.0001408,2]
[330920588,1719943848738,-500.0,0.0001408,2]
[330920589,1719943848748,-500.0,0.0001408,2]
[330920590,1719943848758,-503.35073606,0.0001408,2]
[330920591,1719943848768,-500.0,0.0001408,2]
[330920592,1719943848777,-500.0,0.0001408,2]
[330920593,1719943848786,-500.0,0.0001408,2]
[330920594,1719943848795,-151.0,0.0001408,2]
[330920595,1719943848805,-151.0,0.0001408,2]
[330920596,1719943848814,-500.0,0.0001408,2]
[330920597,1719943848824,-151.0,0.0001408,2]
[330920598,1719943848833,-151.0,0.0001408,2]
[330920599,1719943848842,-151.0,0.0001408,2]
[330920600,1719943848852,-151.0,0.0001408,2]
[330920601,1719943848862,-7263.43,0.0001408,2]
[330920602,1719943848872,-518.62875156,0.0001408,2]
[330920603,1719943848883,-500.0,0.0001408,2]
[330920604,1719943848893,-500.0,0.0001408,2]
[330920605,1719943848903,-500.0,0.0001408,2]
[330920606,1719943848915,-500.0,0.0001408,2]
[330920607,1719943848924,-797.04,0.0001408,2]
[330920608,1719943848938,-151.0,0.0001408,2]
[330920609,1719943848948,-151.0,0.0001408,2]
[330920610,1719943848959,-151.0,0.0001408,2]
[330920611,1719943848970,-500.0,0.0001408,2]
[330920612,1719943848979,-501.8,0.0001408,2]
[330920613,1719943848990,-500.0,0.0001408,2]
[330920614,1719943848999,-500.0,0.0001408,2]
[330920615,1719943849011,-151.0,0.0001408,2]
[330920616,1719943849022,-151.0,0.0001408,2]
[330920617,1719943849032,-151.0,0.0001408,2]
[330920618,1719943849042,-151.0,0.0001408,2]
[330920619,1719943849052,-500.0,0.0001408,2]
[330920620,1719943849061,-1322.37,0.0001408,2]
[330920621,1719943849070,-500.0,0.0001408,2]
[330920622,1719943849080,-151.0,0.0001408,2]
[330920623,1719943849089,-151.0,0.0001408,2]
[330920624,1719943849099,-151.0,0.0001408,2]
[330920625,1719943849108,-165.577565,0.0001408,2]
[330920626,1719943849117,-635.80447038,0.0001408,2]
[330920627,1719943849127,-500.0,0.0001408,2]
[330920628,1719943849136,-500.0,0.0001408,2]
[330920629,1719943849145,-1003.27,0.0001408,2]
[330920630,1719943849155,-500.0,0.0001408,2]
[330920631,1719943849165,-500.0,0.0001408,2]
[330920632,1719943849174,-370.21868496,0.0001408,2]
[330920633,1719943849184,-279.162872,0.0001408,2]
[330920634,1719943849194,-805.15,0.0001408,2]
[330920635,1719943849205,-627.36491239,0.0001408,2]
[330920636,1719943849215,-500.0,0.0001408,2]
[330920637,1719943849225,-500.0,0.0001408,2]
[330920638,1719943849234,-500.0,0.0001408,2]
[330920639,1719943849244,-151.0,0.0001408,2]
[330920640,1719943849253,-151.0,0.0001408,2]
[330920641,1719943849263,-151.0,0.0001408,2]
[330920642,1719943849272,-151.0,0.0001408,2]
[330920643,1719943849281,-500.0,0.0001408,2]
[330920644,1719943849291,-500.0,0.0001408,2]
[330920645,1719943849300,-500.0,0.0001408,2]
[330920646,1719943849309,-500.0,0.0001408,2]
[330920647,1719943849319,-500.0,0.0001408,2]
[330920648,1719943849328,-785.54,0.0001408,2]
[330920649,1719943849337,-151.0,0.0001408,2]
[330920650,1719943849347,-151.0,0.0001408,2]
[330920651,1719943849356,-151.0,0.0001408,2]
[330920652,1719943849365,-151.0,0.0001408,2]
[330920653,1719943849374,-151.0,0.0001408,2]
[330920654,1719943849383,-151.0,0.0001408,2]
[330920655,1719943849393,-151.0,0.0001408,2]
[330920656,1719943849402,-500.0,0.0001408,2]
[330920657,1719943849411,-180.379028,0.0001408,2]
[330920658,1719943849421,-500.0,0.0001408,2]
[330920659,1719943849430,-929.96,0.0001408,2]
[330920660,1719943849440,-151.0,0.0001408,2]
[330920661,1719943849449,-151.0,0.0001408,2]
[330920662,1719943849459,-151.0,0.0001408,2]
[330920663,1719943849468,-505.783091,0.0001408,2]
[330920664,1719943849477,-151.0,0.0001408,2]
[330920665,1719943849486,-505.783091,0.0001408,2]
[330920666,1719943849496,-151.0,0.0001408,2]
[330920667,1719943849505,-505.783091,0.0001408,2]
[330920668,1719943849515,-505.783091,0.0001408,2]
[330920669,1719943849525,-505.783091,0.0001408,2]
[330920670,1719943849535,-151.0,0.0001408,2]
[330920671,1719943849544,-505.783091,0.0001408,2]
[330920672,1719943849555,-225.08382,0.0001408,2]
[330920673,1719943849564,-505.783091,0.0001408,2]
[330920674,1719943849573,-505.783091,0.0001408,2]
[330920675,1719943849582,-505.783091,0.0001408,2]
[330920676,1719943849592,-505.783091,0.0001408,2]
[330920677,1719943849601,-151.0,0.0001408,2]
[330920678,1719943849611,-151.0,0.0001408,2]
[330920679,1719943849620,-151.0,0.0001408,2]
[330920680,1719943849629,-151.0,0.0001408,2]
[330920681,1719943849638,-151.0,0.0001408,2]
[330920682,1719943849647,-500.0,0.0001408,2]
[330920683,1719943849656,-151.0,0.0001408,2]
[330920684,1719943849666,-151.0,0.0001408,2]
[330920685,1719943849675,-151.0,0.0001408,2]
[330920686,1719943849684,-500.0,0.0001408,2]
[330920687,1719943849694,-151.0,0.0001408,2]
[330920688,1719943849703,-151.0,0.0001408,2]
[330920689,1719943849712,-151.0,0.0001408,2]
[330920690,1719943849722,-151.0,0.0001408,2]
[330920691,1719943849732,-151.0,0.0001408,2]